Cogmind - Beta 14 @@@ ROGUE MODE // 2024.09.02 @ 23:26:47 Player: THN-L0C Result: Destroyed by AG-06383 with Assembled Focal Cannon Performance ------------- Evolutions (3) 1500 Regions Visited (10) 2000 Robots Destroyed (46) 230 Value Destroyed (1420) 1420 Prototype IDs (29) 580 Alien Tech Used (0) 0 Bonus (1674) 1674 TOTAL SCORE: 7404 Bonus ------- Follower Combat Kills 74 Aligned with FarCom 300 Met Imprinter 300 Destroyed Z-Imprinter 1000 Cogmind --------- Core Integrity 0/700 Matter 274/300 Energy 87/600 System Corruption 0% Temperature Cool (18) Movement Core (850) Ox16 Location -7/Deep Caves Parts ------- > --- POWER (2) -------- (None) > --- PROPULSION (2) --- (None) > --- UTILITY (6) ------ High-capacity Storage Unit Advanced Energy Well Target Analyzer > --- WEAPON (3) ------- Powered Hammer Power Maul > --- INVENTORY (20) --- Armored Huge Wheel Armored Huge Wheel Coolant Injector Cloak of Protection Zionite Weapon Casing Riot Gun RU-N14's Throwing Claymores (3) RU-N14's Throwing Claymores (2) RU-N14's Throwing Claymores (4) RU-N14's Throwing Claymores (4) Peak State ------------ > --- POWER ------------ Light Nuclear Core Micro Nuclear Core > --- PROPULSION ------- Armored Huge Wheel > --- UTILITY ---------- Experimental Heat Sink High-capacity Storage Unit Targeting Computer Target Analyzer Zionite Weapon Casing Improved Shield Generator > --- WEAPON ----------- Heavy Machine Gun Bore Cannon Bore Cannon > --- INVENTORY -------- Armored Huge Wheel Armored Huge Wheel Coolant Injector High-capacity Matter Pod High-capacity Matter Pod Improved Sensor Array Improved Reaction Control System Cloak of Protection Hacking Drone Bay Riot Gun Improved EM Pulse Cannon Heavy Machine Gun RU-N14's Throwing Claymores RU-N14's Throwing Claymores RU-N14's Throwing Claymores RU-N14's Throwing Claymores Powered Hammer Power Maul [Rating: 61] Favorites ----------- Power Light Nuclear Core Engine Light Ion Engine Power Core Light Nuclear Core Propulsion Armored Huge Wheel Treads Light Treads Wheel Armored Huge Wheel Utility High-capacity Storage Unit Device Improved Sensor Array Storage High-capacity Storage Unit Processor Targeting Computer Protection Improved Medium Armor Plating Weapon Gauss Rifle Energy Gun Thermic Laser Energy Cannon Heavy Particle Cannon Ballistic Gun Gauss Rifle Ballistic Cannon Bore Cannon Special Weapon Plasma Cutter Impact Weapon Powered Hammer Piercing Weapon Spear Build | -11 -10 -10 -10 -9 -8 -7 -7 -7 -7 -7 ------- Run | Yrd Mat Min Exi Min Mat Fac Low Low Zio Dee Slots Evolved 6 | . . . . . 4 2 . . . . Power 1 | . . . . . . 1 . . . . Propulsion . | . . . . . . . . . . . Utility 4 | . . . . . 3 1 . . . . Weapon 1 | . . . . . 1 . . . . . Parts Attached 103 | 7 1 5 . . 23 15 16 5 9 22 Power 6 | 1 . 1 . . 2 2 . . . . Engine 4 | 1 . 1 . . 2 . . . . . Core 2 | . . . . . . 2 . . . . Reactor . | . . . . . . . . . . . Propulsion 6 | 2 . . . . 3 . . . . 1 Treads 4 | 2 . . . . 2 . . . . . Leg . | . . . . . . . . . . . Wheel 2 | . . . . . 1 . . . . 1 Hover . | . . . . . . . . . . . Flight . | . . . . . . . . . . . Utility 47 | 2 1 . . . 11 5 11 2 5 10 Device 26 | 1 . . . . 5 . 8 2 4 6 Storage 5 | 1 1 . . . 2 . . . . 1 Processor 4 | . . . . . . 4 . . . . Hackware . | . . . . . . . . . . . Protection 12 | . . . . . 4 1 3 . 1 3 Artifact . | . . . . . . . . . . . Weapon 44 | 2 . 4 . . 7 8 5 3 4 11 Energy Gun 4 | . . . . . 1 . . 1 1 1 Energy Cannon 4 | . . 1 . . 2 . . . . 1 Ballistic Gun 17 | 2 . 2 . . 4 3 3 2 . 1 Ballistic Cannon 8 | . . 1 . . . . 1 . 2 4 Launcher . | . . . . . . . . . . . Special Weapon 2 | . . . . . . . . . 1 1 Impact Weapon 8 | . . . . . . 4 1 . . 3 Slashing Weapon . | . . . . . . . . . . . Piercing Weapon 1 | . . . . . . 1 . . . . Special Melee Weapon . | . . . . . . . . . . . Unidentified Prototypes 6 | . . . . . 1 . . . 1 4 Parts Lost 15 | . . 2 . . 2 . 1 . . 10 Power 4 | . . 1 . . 1 . . . . 2 Propulsion 1 | . . . . . . . . . . 1 Utility 6 | . . . . . 1 . 1 . . 4 Weapon 4 | . . 1 . . . . . . . 3 Highest Loss Streak 6 | . . 2 . . 2 . 1 . . 6 To Critical Strikes . | . . . . . . . . . . . Average Slot Usage (%) 93 | . 100 96 100 100 94 91 91 92 91 89 Engine 3 | . 14 10 14 14 8 1 . . . . Core 9 | . . . . . . 13 15 15 15 14 Treads 6 | . 28 28 28 28 11 . . . . . Wheel 5 | . . . . . 3 7 7 7 7 6 Device 13 | . 14 14 14 14 20 . 12 14 15 14 Storage 8 | . 14 14 14 14 9 7 7 7 7 7 Processor 13 | . . . . . . 14 23 23 21 14 Protection 5 | . . . . . 14 22 2 . 1 7 Energy Gun 2 | . . . . . 1 . . 3 9 1 Energy Cannon 2 | . . 1 14 14 5 . . . . 1 Ballistic Gun 15 | . 28 25 . . 15 17 21 19 9 6 Ballistic Cannon 2 | . . 1 14 14 4 . . . 1 8 Peak Build Rating 61 | 7 8 13 13 13 41 48 53 51 56 61 Average Rating 39 | 5 7 8 13 13 30 47 47 49 50 56 On Entrance 26 | . 7 8 13 13 13 40 48 45 51 56 Naked Turns . | . . . . . . . . . . . Heaviest Build 86 | 14 29 35 35 35 69 74 77 71 86 86 Greatest Support 40 | 40 40 40 40 40 40 28 28 28 28 28 Greatest Overweight (x) 19 | 4 . . . . 2 2 2 2 3 19 Average Overweight (x) 1 | . . . . . 1 2 2 2 2 2 Largest Inventory Capacity 20 | 8 15 15 15 15 20 20 20 20 20 20 Average Capacity 18 | 7 12 15 15 15 16 20 20 20 20 20 Most Carried 20 | 1 8 15 15 15 20 20 20 20 20 20 Average Carried 17 | . 5 10 15 15 16 19 19 19 19 18 Final Capacity 20 | 8 15 15 15 15 20 20 20 20 20 20 Final Carried 20 | 1 8 15 15 15 20 20 20 20 20 12 Class Distribution -------------------- 40% | Skirmisher 21% | Mutant 21% | Gunner 8% | Tank 4% | Scavenger-Mutant Dominant Class ---------------- Mutant | -10/Materials Scavenger-Mutant | -10/Mines Mutant | -10/Exiles Mutant | -9/Mines Skirmisher | -8/Materials Mutant | -7/Factory Gunner | -7/Lower Caves Skirmisher | -7/Lower Caves Skirmisher | -7/Zion Gunner | -7/Deep Caves Resources | -11 -10 -10 -10 -9 -8 -7 -7 -7 -7 -7 ----------- Run | Yrd Mat Min Exi Min Mat Fac Low Low Zio Dee Matter Collected 2902 | 301 175 358 . 97 589 240 386 131 50 575 Remotely . | . . . . . . . . . . . Salvage Created 1733 | 168 202 365 . . 379 240 215 . . 164 Parts 101 | 14 19 20 . . 29 14 5 . . . Haulers Intercepted . | . . . . . . . . . . . Recyclers Shooed 5 | 1 2 2 . . . . . . . . Parts Field Recycled . | . . . . . . . . . . . Retrieved Matter . | . . . . . . . . . . . Parts Self-Destructed 6 | . . . . . . . 5 . 1 . Prevented . | . . . . . . . . . . . Kills | -11 -10 -10 -10 -9 -8 -7 -7 -7 -7 -7 ------- Run | Yrd Mat Min Exi Min Mat Fac Low Low Zio Dee Combat Hostiles Destroyed 37 | . 7 4 . . 11 5 4 . . 6 Guns 23 | . 7 4 . . 2 5 4 . . 1 Cannons 13 | . . . . . 9 . . . . 4 Classes Destroyed 12 | 2 3 . . . 3 1 1 . . 2 Tunneler 5 | 4 1 . . . . . . . . . Recycler 5 | 1 . 4 . . . . . . . . Operator 1 | . . . . . 1 . . . . . Watcher 2 | . 1 . . . . 1 . . . . Swarmer 12 | . 5 3 . . 4 . . . . . Grunt 12 | . 2 1 . . 4 4 1 . . . Brawler 1 | . . . . . . . 1 . . . Sentry 1 | . . . . . 1 . . . . . Hunter 4 | . . . . . 2 . 2 . . . Programmer 1 | . . . . . . 1 . . . . Z-Technician 4 | . . . . . . . . . . 4 Assembled 4 | . . . . . . . . . . 4 Golem 1 | . . . . . . . . . . 1 Best Kill Streak 6 | 5 4 6 . . 5 4 1 . . 4 Combat Bots Only 5 | . 2 3 . . 5 4 1 . . 2 Max Kills in Single Turn 4 | 1 1 1 . . 1 2 1 . . 4 Gunslinging . | . . . . . . . . . . . Exploded . | . . . . . . . . . . . Melee . | . . . . . . . . . . . Uniques/NPCs Destroyed 1 | . . . . . . . . . . 1 Z-Imprinter (-7/Deep Caves) Combat | -11 -10 -10 -10 -9 -8 -7 -7 -7 -7 -7 -------- Run | Yrd Mat Min Exi Min Mat Fac Low Low Zio Dee Hostile Shots Fired 234 | . 51 24 . . 51 22 35 . . 51 Missed 49 | . 10 4 . . 14 7 9 . . 5 Damage Taken 3449 | . 382 165 . . 467 232 379 . . 1824 Core 840 | . 66 32 . . 6 31 . . . 705 Absorbed by Shields 159 | . . . . . . . 21 . . 138 Redirected to Shielding 103 | . . . . . . 71 32 . . . Core Remaining (%) 86 | 100 . . . 60 98 . . . . . Volleys Fired 167 | 14 27 32 . . 28 11 23 . . 32 Largest 3 | 2 2 2 . . 3 3 3 . . 3 Hottest 176 | 40 40 40 . . 139 84 84 . . 176 Shots Fired 361 | 28 54 58 . . 64 32 53 . . 72 Gun 279 | 28 54 58 . . 35 32 49 . . 23 Cannon 82 | . . . . . 29 . 4 . . 49 Launcher . | . . . . . . . . . . . Special . | . . . . . . . . . . . Kinetic 336 | 28 54 58 . . 47 32 53 . . 64 Thermal 10 | . . . . . 10 . . . . . Explosive . | . . . . . . . . . . . Electromagnetic 15 | . . . . . 7 . . . . 8 Robot Hit Streak 14 | 6 12 8 . . 10 9 12 . . 14 Robot Miss Streak 12 | 2 4 4 . . 4 4 3 . . 12 Penetration Max 1 | . . . . . . 1 1 . . 1 Secondary Targets 3 | . 2 . . . . . 1 . . . Max Gunslinging Chain 1 | . 1 . . . . . 1 . . . Shots Hit Robots 206 | 17 30 38 . . 41 23 26 . . 31 Core Hits 103 | 9 14 17 . 1 23 20 10 . . 9 Critical Kills 6 | . . 1 . . . 1 1 . . 3 Critical Parts Destroyed 9 | . 1 . . . . . 1 . . 7 Critical Strikes 17 | . 1 1 . . 2 1 2 . . 10 Destroy 15 | . 1 1 . . . 1 2 . . 10 Blast 2 | . . . . . 2 . . . . . Melee Attacks 26 | . . . . . . 15 4 . . 7 Impact 25 | . . . . . . 14 4 . . 7 Slashing . | . . . . . . . . . . . Piercing 1 | . . . . . . 1 . . . . Sneak Attacks 1 | . . . . . . 1 . . . . Combat Hostiles . | . . . . . . . . . . . Follow-up Attacks . | . . . . . . . . . . . Damage Inflicted 5136 | 188 351 310 . 9 696 560 450 . . 2572 Guns 2229 | 182 345 310 . . 228 508 450 . . 206 Cannons 941 | . . . . . 448 . . . . 493 Explosions 1759 | . . . . . . . . . . 1759 Melee 166 | . . . . . . 52 . . . 114 Ramming 41 | 6 6 . . 9 20 . . . . . Kinetic 2823 | 182 345 310 . . 479 508 450 . . 549 Thermal 1827 | . . . . . 68 . . . . 1759 Explosive . | . . . . . . . . . . . Electromagnetic 279 | . . . . . 129 . . . . 150 Impact 166 | . . . . . . 52 . . . 114 Slashing . | . . . . . . . . . . . Piercing . | . . . . . . . . . . . Highest Corruption . | . . . . . . . . . . . Average Corruption . | . . . . . . . . . . . Corruption Purged . | . . . . . . . . . . . Corruption Blocked . | . . . . . . . . . . . Overload Shots . | . . . . . . . . . . . Overflow Damage 487 | . . . . . 12 12 . . . 463 Projectiles 25 | . . . . . 12 . . . . 13 Explosions 450 | . . . . . . . . . . 450 Melee 12 | . . . . . . 12 . . . . Knockbacks 7 | . . . . . 2 1 . . . 4 Impact 3 | . . . . . . 1 . . . 2 Kinetic 4 | . . . . . 2 . . . . 2 Secondary . | . . . . . . . . . . . Self-Inflicted Damage . | . . . . . . . . . . . Shots . | . . . . . . . . . . . Rammed 8 | 2 2 . . 1 3 . . . . . Targets Rammed 8 | 2 2 . . 1 3 . . . . . Kicked . | . . . . . . . . . . . Crushed . | . . . . . . . . . . . Highest Temperature 291 | . 17 . . . 200 291 273 . . 190 Average Temperature 88 | . 10 . . . 62 119 88 . . 110 Received Heat Transfer 734 | . 93 12 . . 117 117 135 . . 260 Siege Activations . | . . . . . . . . . . . Robots Corrupted 1 | . . . . . . . . . . 1 Combat Hostiles 1 | . . . . . . . . . . 1 Parts Fried 2 | . . . . . 2 . . . . . Impact Corruptions 1 | . . . . . . 1 . . . . Robots Melted . | . . . . . . . . . . . Combat Hostiles . | . . . . . . . . . . . Parts Melted . | . . . . . . . . . . . Heat Transferred 198 | . . . . . 148 . . . . 50 Parts Sabotaged . | . . . . . . . . . . . Parts Stolen . | . . . . . . . . . . . Parts Stripped . | . . . . . . . . . . . Power Chain Reactions 1 | . . . . . . . . . . 1 Alert | -11 -10 -10 -10 -9 -8 -7 -7 -7 -7 -7 ------- Run | Yrd Mat Min Exi Min Mat Fac Low Low Zio Dee Peak Influence 213 | 25 213 109 . . 202 134 . . . . Initial 27 | . 16 24 . . . 27 . . . . Average 40 | 9 83 58 . . 39 27 . . . . Maximum Alert Level 1 | . 1 . . . 1 . . . . . Low Security (%) 97 | 100 80 100 . 100 99 100 . . . . Level 1 2 | . 19 . . . . . . . . . Level 2 . | . . . . . . . . . . . Level 3 . | . . . . . . . . . . . Level 4 . | . . . . . . . . . . . Level 5 . | . . . . . . . . . . . High Security . | . . . . . . . . . . . Max Security . | . . . . . . . . . . . Squads Dispatched 3 | . . 1 . . . 2 . . . . Investigation 1 | . . 1 . . . . . . . . Extermination 2 | . . . . . . 2 . . . . Reinforcement . | . . . . . . . . . . . Assault . | . . . . . . . . . . . Garrison . | . . . . . . . . . . . Intercept . | . . . . . . . . . . . Searches Triggered . | . . . . . . . . . . . Construction Impeded . | . . . . . . . . . . . Haulers Reinforced . | . . . . . . . . . . . Active Scanning Responses . | . . . . . . . . . . . Cargo Convoy Interrupts . | . . . . . . . . . . . Stealth | -11 -10 -10 -10 -9 -8 -7 -7 -7 -7 -7 --------- Run | Yrd Mat Min Exi Min Mat Fac Low Low Zio Dee Distress Signals 6 | . 2 . . . 4 . . . . . Communications Jammed . | . . . . . . . . . . . Distress Signals . | . . . . . . . . . . . Times Spotted 74 | . 16 5 . . 24 10 6 2 . 11 Peak Tracking Total 6 | . 5 3 . . 6 4 3 3 . 4 Tactical Retreats 7 | . 2 . . . 3 . 1 1 . . Traps | -11 -10 -10 -10 -9 -8 -7 -7 -7 -7 -7 ------- Run | Yrd Mat Min Exi Min Mat Fac Low Low Zio Dee Traps Triggered . | . . . . . . . . . . . Indirectly . | . . . . . . . . . . . Trap Hack Attempts . | . . . . . . . . . . . Triggered . | . . . . . . . . . . . Disarmed . | . . . . . . . . . . . Reprogrammed . | . . . . . . . . . . . Reused . | . . . . . . . . . . . Traps Extracted . | . . . . . . . . . . . Installed . | . . . . . . . . . . . Triggered . | . . . . . . . . . . . Most Traps Carried 4 | . . 4 4 4 4 . . . . . Machines | -11 -10 -10 -10 -9 -8 -7 -7 -7 -7 -7 ---------- Run | Yrd Mat Min Exi Min Mat Fac Low Low Zio Dee Machines Disabled 7 | . . . . . 1 . . . 3 3 Max in Single Turn 1 | . . . . . 1 . . . 1 1 Machines Repaired . | . . . . . . . . . . . Machines Dismantled 3 | . . . . . . . . . 3 . Machines Sabotaged . | . . . . . . . . . . . Overloaded Fab Kills . | . . . . . . . . . . . Hacking | -11 -10 -10 -10 -9 -8 -7 -7 -7 -7 -7 --------- Run | Yrd Mat Min Exi Min Mat Fac Low Low Zio Dee Machines Accessed 13 | . 3 1 1 . 5 2 . 1 . . Terminals 10 | . 3 . . . 5 2 . . . . Fabricators . | . . . . . . . . . . . Repair Stations . | . . . . . . . . . . . Recycling Units . | . . . . . . . . . . . Scanalyzers . | . . . . . . . . . . . Garrison Access . | . . . . . . . . . . . Total Hacks 30 | . 6 1 1 . 15 6 . 1 . . Successful 18 | . 1 1 1 . 10 4 . 1 . . Failed 12 | . 5 . . . 5 2 . . . . Catastrophic 2 | . 1 . . . 1 . . . . . Database Lockouts . | . . . . . . . . . . . Manual 26 | . 6 . 1 . 14 4 . . 1 . Terminals 27 | . 6 . . . 15 6 . . . . Fabricators . | . . . . . . . . . . . Repair Stations . | . . . . . . . . . . . Recycling Units . | . . . . . . . . . . . Scanalyzers . | . . . . . . . . . . . Garrison Access . | . . . . . . . . . . . Terminal Hacks 6 | . . 1 1 . 2 1 . 1 . . Open Door 2 | . . 1 . . . . . 1 . . Terminal Index 1 | . . . . . 1 . . . . . Unreport Threat 1 | . . . . . 1 . . . . . Locate Traps 1 | . . . . . . 1 . . . . Derelict Proto ID Bank 1 | . . . 1 . . . . . . . Fabricator Hacks . | . . . . . . . . . . . Repair Station Hacks . | . . . . . . . . . . . Recycling Unit Hacks . | . . . . . . . . . . . Scanalyzer . | . . . . . . . . . . . Garrison Access Hacks . | . . . . . . . . . . . Unauthorized Hacks 12 | . 1 . . . 8 3 . . . . Terminals 12 | . 1 . . . 8 3 . . . . Assimilate 1 | . . . . . 1 . . . . . Botnet 3 | . . . . . 2 1 . . . . Skim 8 | . 1 . . . 5 2 . . . . Fabricators . | . . . . . . . . . . . Repair Stations . | . . . . . . . . . . . Recycling Units . | . . . . . . . . . . . Scanalyzers . | . . . . . . . . . . . Garrison Access . | . . . . . . . . . . . Data Cores Recovered 1 | . . . . . 1 . . . . . Used 1 | . . . . . 1 . . . . . Hacking Detections 9 | . 3 . . . 5 1 . . . . Full Trace Events . | . . . . . . . . . . . Feedback Events . | . . . . . . . . . . . Feedback Blocked . | . . . . . . . . . . . Robot Schematics Acquired . | . . . . . . . . . . . Robots Built . | . . . . . . . . . . . Authchips . | . . . . . . . . . . . Time . | . . . . . . . . . . . Total Robot Build Rating . | . . . . . . . . . . . Part Schematics Acquired . | . . . . . . . . . . . Parts Built . | . . . . . . . . . . . Authchips . | . . . . . . . . . . . Time . | . . . . . . . . . . . Total Part Build Rating . | . . . . . . . . . . . Parts Repaired . | . . . . . . . . . . . Time . | . . . . . . . . . . . Parts Recycled . | . . . . . . . . . . . Recycled Matter . | . . . . . . . . . . . Retrieved Matter . | . . . . . . . . . . . Retrieved Components . | . . . . . . . . . . . Parts Scanalyzed . | . . . . . . . . . . . Part Schematics Acquired . | . . . . . . . . . . . Parts Damaged . | . . . . . . . . . . . Bothacking | -11 -10 -10 -10 -9 -8 -7 -7 -7 -7 -7 ------------ Run | Yrd Mat Min Exi Min Mat Fac Low Low Zio Dee Used RIF Installer . | . . . . . . . . . . . Robots Hacked . | . . . . . . . . . . . Non-combat . | . . . . . . . . . . . Combat . | . . . . . . . . . . . Robot Hacks Applied . | . . . . . . . . . . . Relay Couplers Released . | . . . . . . . . . . . Fabnet Peak Effective % . | . . . . . . . . . . . Robots Rewired . | . . . . . . . . . . . Allies Hacked . | . . . . . . . . . . . Hacks Repelled . | . . . . . . . . . . . Allies | -11 -10 -10 -10 -9 -8 -7 -7 -7 -7 -7 -------- Run | Yrd Mat Min Exi Min Mat Fac Low Low Zio Dee Total Allies 4 | . . . . 1 1 . . . 2 . Largest Group 2 | . . . . 1 1 . . . 2 2 Highest-Rated Group 192 | . . . . 31 31 . . . 192 192 Highest-Rated Ally 96 | . . . . 31 31 . . . 96 96 Total Orders . | . . . . . . . . . . . Ally Attacks 43 | . . . . . . . . . . 43 Total Damage 1215 | . . . . . . . . . . 1215 Kills 8 | . . . . . . . . . . 8 Allies Corrupted . | . . . . . . . . . . . Allies Melted 1 | . . . . . . . . . . 1 Intel | -11 -10 -10 -10 -9 -8 -7 -7 -7 -7 -7 ------- Run | Yrd Mat Min Exi Min Mat Fac Low Low Zio Dee Robot Analysis Total . | . . . . . . . . . . . Derelict Logs Recovered 5 | . . 1 . . . . 1 2 1 . Drone Launches . | . . . . . . . . . . . Drone Recoveries . | . . . . . . . . . . . Exploration | -11 -10 -10 -10 -9 -8 -7 -7 -7 -7 -7 ------------- Run | Yrd Mat Min Exi Min Mat Fac Low Low Zio Dee Turns Passed 12545 | 136 577 742 341 455 2185 1108 2453 1233 1925 1390 Spaces Moved 6585 | 50 306 406 213 118 860 744 954 667 1392 875 Core 22 | 20 . . . . . . . . . 2 Treads 1547 | 30 306 406 213 118 474 . . . . . Legs . | . . . . . . . . . . . Wheels 5016 | . . . . . 386 744 954 667 1392 873 Hover . | . . . . . . . . . . . Flight . | . . . . . . . . . . . Fastest Speed 50 | 50 160 160 160 160 115 130 130 130 130 130 Average Speed 143 | 165 160 160 160 160 192 130 130 130 130 134 Slowest Speed 1000 | 250 160 160 160 160 250 130 130 130 145 1000 Overloaded Moves . | . . . . . . . . . . . Propulsion Burnouts . | . . . . . . . . . . . Robots Hopped . | . . . . . . . . . . . Cave-ins Triggered . | . . . . . . . . . . . Exploration Rate (%) 55 | 4 46 90 61 36 63 16 72 70 85 70 Regions Visited 10 Branch Regions 7 Pre-discovered Areas 4 | . . 1 . . 2 . . . 1 . Known Exits Taken 3 | . . . . . . 1 1 1 . . Unknown Exits Taken 7 | 1 1 1 1 1 1 . . . 1 . Scrap Searched 9 | . . 1 . 1 . . 2 1 4 . Spaces Dug 24 | . . . . . . 14 7 . . 3 Terrain Destroyed 52 | . . . . . 4 16 7 . . 25 Melee 20 | . . . . . . 13 4 . . 3 Projectile 15 | . . . . . 4 3 3 . . 5 AOE 17 | . . . . . . . . . . 17 Terrain Rammed . | . . . . . . . . . . . Walls Destroyed . | . . . . . . . . . . . Machines Disabled . | . . . . . . . . . . . Actions | -11 -10 -10 -10 -9 -8 -7 -7 -7 -7 -7 --------- Run | Yrd Mat Min Exi Min Mat Fac Low Low Zio Dee Total 9246 | 74 344 452 214 384 1345 831 2109 1033 1449 1011 Wait 2216 | 1 1 . . 266 380 35 1111 359 1 62 Move 6575 | 49 305 405 212 117 859 743 953 666 1391 875 Hop . | . . . . . . . . . . . Pick Up 62 | 1 7 8 1 . 23 6 1 1 10 4 Fast Attach 15 | 7 . 2 . . 4 1 . . 1 . Attach 17 | . . . . . 6 1 . 1 3 6 Detach 6 | . . . . . 3 . . . 1 2 Swap 71 | . 1 3 . . 13 13 16 4 5 16 Drop 56 | . 1 2 1 . 26 6 1 2 10 7 Fire 167 | 14 27 32 . . 28 11 23 . . 32 Melee 26 | . . . . . . 15 4 . . 7 Ram . | . . . . . . . . . . . Kick . | . . . . . . . . . . . Crush 8 | 2 2 . . 1 3 . . . . . Escape Stasis . | . . . . . . . . . . . Rewire . | . . . . . . . . . . . Trap . | . . . . . . . . . . . Miscellaneous 27 | . . . . . . . . . 27 . Route ------- -11/Scrapyard -10/Materials (discovered 2 exits: [*Mat] / *Min) -10/Mines (discovered 3 exits: [*Mat x2] / *Exi) -10/Exiles (discovered 2 exits: [*Min x2]) -9/Mines -8/Materials (discovered 2 exits: *Fac x2) -7/Factory (discovered 2 exits: [*Sto] / *Low) -7/Lower Caves -7/Lower Caves (discovered 2 exits: Fac / *Zio) -7/Zion (discovered 2 exits: [*Dee] / [*Pro]) -7/Deep Caves (discovered 1 exit: [*Pro]) History --------- Turn | Location | Event 34 | -11/Scrapyard | Discovered new exit (range 16) 137 | -11/Scrapyard | Entered Materials 309 | -10/Materials | Build established: Mutant 440 | -10/Materials | Discovered new exit (range 11) 703 | -10/Materials | Discovered new exit (range 6) 714 | -10/Materials | Entered Mines 731 | -10/Mines | Discovered new exit (range 13) 792 | -10/Mines | Discovered new exit (range 13) 1187 | -10/Mines | Found a hidden stash of uninstalled traps 1192 | -10/Mines | Build established: Scavenger-Mutant 1315 | -10/Mines | Learned location of Zion (-7) 1352 | -10/Mines | Met a Derelict shopkeep closing up shop 1448 | -10/Mines | Deemed a non-threat by the Exiles lab entrance 1449 | -10/Mines | Discovered new exit (range 5) 1456 | -10/Mines | Entered Exiles 1480 | -10/Exiles | Discovered new exit (range 15) 1500 | -10/Exiles | Met 8R-AWN 1522 | -10/Exiles | Met EX-HEX 1572 | -10/Exiles | Met EX-BIN 1591 | -10/Exiles | Aligned with FarCom system 1592 | -10/Exiles | Given EX-Vault access code 1631 | -10/Exiles | Opened EX-Vault 1639 | -10/Exiles | Found Cloak of Protection 1671 | -10/Exiles | Warned to stay clear of 0b10 Research branches 1697 | -10/Exiles | Exiles lab attacked by MAIN.C 1698 | -10/Exiles | Build established: Mutant 1783 | -10/Exiles | Discovered new exit (range 11) 1797 | -10/Exiles | Left Exiles lab with Cloak of Protection 1797 | -10/Exiles | Entered Mines 1901 | -9/Mines | Assembled infested the area 2231 | -9/Mines | Received a Mining Laser from a helpful Derelict 2243 | -9/Mines | Discovered new exit (range 5) 2252 | -9/Mines | Entered Materials 2252 | -8/Materials | Accompanied by 1 ally 2252 | -8/Materials | Evolved 4 slots: Utility x3, Weapon x1 2560 | -8/Materials | Build established: Skirmisher 3511 | -8/Materials | Discovered new exit (range 16) 3874 | -8/Materials | Learned Storage stockpile data 3891 | -8/Materials | Build established: Tank 3943 | -8/Materials | Learned Storage trap positions 4003 | -8/Materials | Learned 4 Recycling zone layouts 4004 | -8/Materials | Discovered new exit (range 3) 4054 | -8/Materials | Learned Factory emergency access door positions 4095 | -8/Materials | Learned location of Recycling (-7) 4128 | -8/Materials | Learned location of 1 exit from Lower Caves 4170 | -8/Materials | Learned location of Storage (-7) 4223 | -8/Materials | Learned location of 1 exit from Lower Caves 4437 | -8/Materials | Entered Factory 4437 | -7/Factory | Evolved 2 slots: Power x1, Utility x1 4919 | -7/Factory | Discovered new exit (range 4) 5126 | -7/Factory | Discovered new exit (range 15) 5145 | -7/Factory | Build established: Mutant 5490 | -7/Factory | Identified exit to Lower Caves 5545 | -7/Factory | Entered Lower Caves 5546 | -7/Lower Caves | Identified exit to Lower Caves 5572 | -7/Lower Caves | Encountered a Warlord checkpoint 5586 | -7/Lower Caves | Learned Factory trap positions 5835 | -7/Lower Caves | Build established: Gunner 6638 | -7/Lower Caves | Build established: Assassin 7096 | -7/Lower Caves | Build established: Skirmisher 7963 | -7/Lower Caves | Build established: Gunner 7998 | -7/Lower Caves | Entered another Lower Caves area 7999 | -7/Lower Caves | Identified exit to Factory 8008 | -7/Lower Caves | Encountered a Warlord checkpoint 8387 | -7/Lower Caves | Build established: Skirmisher 8772 | -7/Lower Caves | Learned location of 1 exit from Factory 8954 | -7/Lower Caves | Learned 12 Factory zone layouts 8960 | -7/Lower Caves | Discovered new exit (range 3) 8962 | -7/Lower Caves | Identified exit to Zion 9231 | -7/Lower Caves | Entered Zion 9303 | -7/Zion | Given the Hacking Drone Bay 9306 | -7/Zion | Found Prototype Device 9325 | -7/Zion | Given A8's code to call for help 9362 | -7/Zion | Discovered new exit (range 9) 9936 | -7/Zion | Discovered new exit (range 3) 9936 | -7/Zion | Saw the warning signs outside the Deep Caves entrance 10501 | -7/Zion | Rebuked by Imprinter 10736 | -7/Zion | Identified Hacking Drone Bay 10838 | -7/Zion | Found Prototype Special Weapon 10840 | -7/Zion | Found Prototype Special Weapon 10850 | -7/Zion | Found Prototype Special Weapon 10856 | -7/Zion | Found Prototype Special Weapon 11116 | -7/Zion | Build established: Gunner 11139 | -7/Zion | Enhanced Grunt warped into view, answering call for help 11143 | -7/Zion | Enhanced Grunt warped into view, answering call for help 11156 | -7/Zion | Entered Deep Caves 11156 | -7/Deep Caves | Accompanied by 2 allies 11326 | -7/Deep Caves | Attacked by Z-Imprinter 11355 | -7/Deep Caves | Destroyed Z-Imprinter 11422 | -7/Deep Caves | Found Prototype Protection 11422 | -7/Deep Caves | Identified Zio. Weapon Casing 11472 | -7/Deep Caves | Z-Facility disabled 11757 | -7/Deep Caves | Discovered new exit (range 6) 12245 | -7/Deep Caves | Identified RU-N14's Throwing Claymores (x4) 12368 | -7/Deep Caves | Spotted AG-58837 12399 | -7/Deep Caves | Destroyed AG-58837 12463 | -7/Deep Caves | Spotted AG-06383 12516 | -7/Deep Caves | Lost 3 parts (1p1u1w) 12532 | -7/Deep Caves | Core integrity fell below 50% 12544 | -7/Deep Caves | Core integrity fell below 20% 12546 | -7/Deep Caves | Destroyed by AG-06383 with Assembled Focal Cannon Last Messages --------------- 12399_ AG-58837 system terminally corrupted. 12405_ Acquired 12 matter. 12417_ Acquired Prototype Storage. 12482_ AG-06383 suffers critical hit (Destroy). 12482_ Destroyed Prototype Leg. 12482_ Imp. Medium Armor Plating destroyed. 12483_ AG-06383 GOLEM Unit beginning Prototype Leg integration. 12483_ AG-06383: "DSI9AT1D G8OHIBQ29FWG 26R186 QD12WHW8W33 TDK1 81FTS" 12485_ Mic. Nuclear Core destroyed. 12485_ Imp. EM Pulse Cannon destroyed. 12494_ Discarded Targeting Computer. 12494_ Identified Adv. Energy Well. 12515_ AG-06383 knocked back. 12520_ Lgt. Nuclear Core destroyed. 12527_ AG-06383 knocked back. 12528_ Imp. Shield Generator destroyed. 12528_ Arm. Huge Wheel destroyed. 12535_ Bore Cannon destroyed. 12535_ Imp. Reaction Control System destroyed. 12535_ Exp. Heat Sink destroyed. Map ----- +----------------------------------------------------+ | | | | | ?????????????????????????????????????????????????? | | ?????????????????????????????????????????????????? | | ?????????????????????????????????????????????????? | | ?????????????????????????????????????????????????? | | ?????????????????????????????????????????????????? | | ???????????????????? ????????????????????????????? | | ?????????????????# ? ????????????????????????????? | | ?????????????? ? ??##????????????????????????? | | ???????????? # ?? #????????????????????????? | | ?????????? ?? #????????????????????????? | | ??????????" ?? ?????????????????????????? | | ????????? #? ?????????????????????????? | | ????????? # ?????????????????????????? | | ????????" ! ?????????????????????????? | | ????????# ??????????????????????????? | | ?????????" ??????????????????# "?????? | | ?????????" ???????????????? ## "????? | | ?????????" ???????????????? ???? | | ?????????" l #?####????????? ?### | | ?????????" #?# ;#????????? % ## | | ????????# M ### ;###???????# | | ????????# # #???????? | | ????????# / ####???????? ?? | | ????????# // @ ###????????? ???# | | ????????# / G #?????? ??# ????# | | ????????# * ###?????? ??# ????# | | ????????# ##??????? #?# ###??# | | ????????# h g #??????? #?# ##?# | | ????????? ! #??????? #?# #?# | | ????????? ! #??????? ### #?# | | ?????????? = = = !! #?????## ## #?# | | ?????????? #????## ### | | ?????????? s #???## | | ?????????? gbl #???# #### ###### | | ?????????" = ##?## ???## #???## | | ?????????" ! #?# #??### #???# | | ????????# = = #?# #### #???# | | ????????" = #?# ## ##??# | | ????????" = #### #??## | | ????????" #???? | | ????????""" % = #???? | | ????????" = = ### #####? | | ?????????" =% ## #?## ## ## | | ????????" % ## #??## # | | ?????????" % ## ##???# # | | ????????" " " ## ##????## #" | | ????????" #### #" "" ### ##??????## ### | | ????????""" ?????# #" ####?#####????????######?? | +----------------------------------------------------+ Best States ------------- Heat Dissipation 60 Coolant Potential 65 Energy Generation 24 Energy Capacity 660 Matter Stores 300 Matter Capacity 300 Sight Range 16 Robot Scan Range 15 Terrain Scan Range 16 Terrain Scan Density 10 Cloak Strength 5 Armor Coverage 225 Propulsion Shielding 66 Weapon Shielding 100 Evasion (%) 40 Targeting Accuracy 5 Target Analysis 5 Recoil Reduction 2 Item Schematics ----------------- None Robot Schematics ------------------ None Fabricated ------------ Nothing Alien Tech Used ----------------- None Achievements -------------- None Challenges ------------ None Game ------ Seed MolecularAmuletKatana Manual? 0 Play Time 01:06:20 Cumulative 194.8 hours Start 2024.09.02 @ 22:22:32 End 2024.09.02 @ 23:26:47 Sessions 1 Manual Loads 0 Difficulty Rogue Special Mode None Game No. 170 Rogue 170 Adventurer 0 Explorer 0 Win Type - Total 1 Types 0/0/0/1/0/0/0/0/0 Lore% 63 Gallery% 72 Achievement% 53 Wizard Run 0 Options --------- Layout 2 ASCII 0 Keyboard 1 Movement Vi Keybinds 0 Fullscreen 1 Font 32/SmallcapsGlow Map View 77x44 Zoom Use 0% Tactical HUD 1 Map Filters NONE Filters NONE Steam 1 RUN: 9d3d8433-7340-4286-ad6a-e3de333d615d